[Event "European Online Club-ch-G 2021"]
[Site "Online"]
[Date "2021.03.27"]
[Round "1.8"]
[White "Hmamouche, Youssef"]
[Black "Shchekachev, Andrei"]
[Result "0-1"]
[ECO "E14"]
[WhiteElo "1926"]
[BlackElo "2515"]
[Annotator "ChessBase"]
[PlyCount "104"]
[EventDate "2021.03.27"]
[EventType "team-tourn"]
[EventCountry "NET"]
[SourceTitle "playchess.com"]
[Source "ChessBase"]
[SourceQuality "1"]
[TimeControl "900+5"]

1. d4 {[%emt 0:00:00]} Nf6 {[%emt 0:00:13]} 2. Nf3 {[%emt 0:00:12]} e6 {[%emt 0:00:09]} 3. c4 {[%emt 0:00:18]} b6 {[%emt 0:00:03]} 4. Nc3 {[%emt 0:00:10]} Bb7 {[%emt 0:00:11]} 5. a3 {[%emt 0:00:57]} d5 {[%emt 0:00:05]} 6. e3 {[%emt 0:00:08]} a6 {[%emt 0:00:28]} 7. cxd5 {[%emt 0:00:18]} exd5 {[%emt 0:00:07]} 8. Bd3 {[%emt 0:00:03]} Bd6 {[%emt 0:00:11]} 9. O-O {[%emt 0:00:11]} Nbd7 {[%emt 0:00:03]} 10. h3 {[%emt 0:00:28]} O-O {[%emt 0:00:06]} 11. b4 {[%emt 0:00:58]} Qe7 {[%emt 0:00:17]} 12. Bb2 {[%emt 0:00:13]} Ne4 {[%emt 0:00:17]} 13. Bxe4 {[%emt 0:01:20]} dxe4 {[%emt 0:00:04]} 14. Nd2 {[%emt 0:00:04]} f5 {[%emt 0:03:47]} 15. Nc4 {[%emt 0:00:28]} Rae8 {[%emt 0:00:06]} 16. Nxd6 {[%emt 0:00:03]} cxd6 {[%emt 0:00:19]} 17. Ne2 {[%emt 0:00:38]} Bd5 {[%emt 0:00:22]} 18. Rc1 {[%emt 0:00:18]} b5 {[%emt 0:00:15]} 19. Rc7 {[%emt 0:01:23]} Rc8 {[%emt 0:00:07]} 20. Qc1 {[%emt 0:00:09]} Bc4 {[%emt 0:00:16]} 21. Rxc8 {[%emt 0:00:15]} Rxc8 {[%emt 0:00:03]} 22. Re1 {[%emt 0:00:15]} d5 {[%emt 0:00:13]} 23. Qd2 {[%emt 0:00:31]} Bxe2 {[%emt 0:00:12]} 24. Qxe2 {[%emt 0:00:25]} Nb6 {[%emt 0:00:03]} 25. Ra1 {[%emt 0:00:26]} Rc6 {[%emt 0:00:12]} 26. Bc1 {[%emt 0:00:12]} Qg5 {[%emt 0:01:02]} 27. Bd2 {[%emt 0:00:12]} Rg6 {[%emt 0:00:06]} 28. Qf1 {[%emt 0:00:20]} h6 {[%emt 0:00:07]} 29. Be1 {[%emt 0:00:02]} f4 {[%emt 0:00:12]} 30. exf4 {[%emt 0:00:58]} Qxf4 {[%emt 0:00:04]} 31. Ra2 {[%emt 0:00:15]} Nc4 {[%emt 0:00:58]} 32. Re2 {[%emt 0:00:08]} Qf3 {[%emt 0:00:13]} 33. Kh1 {[%emt 0:00:24]} Qd3 {[%emt 0:00:06]} 34. Kg1 {[%emt 0:00:09]} Qxh3 {[%emt 0:00:50]} 35. g3 {[%emt 0:00:43]} Qg4 {[%emt 0:00:17]} 36. f3 {[%emt 0:00:17]} Qxf3 {[%emt 0:00:11]} 37. Qxf3 {[%emt 0:00:02]} exf3 {[%emt 0:00:03]} 38. Re8+ {[%emt 0:00:02]} Kf7 {[%emt 0:00:15]} 39. Rd8 {[%emt 0:00:03]} Rd6 {[%emt 0:00:11]} 40. Ra8 {[%emt 0:00:28]} Re6 {[%emt 0:00:09]} 41. Bf2 {[%emt 0:00:26]} Re2 {[%emt 0:00:31]} 42. Rxa6 {[%emt 0:00:27]} Nd2 {[%emt 0:00:08]} 43. g4 {[%emt 0:00:17]} Ne4 {[%emt 0:00:05]} 44. Ra7+ {[%emt 0:00:21]} Kg8 {[%emt 0:00:19]} 45. Bh4 {[%emt 0:00:05]} g5 {[%emt 0:00:04]} 46. Ra8+ {[%emt 0:00:08]} Kf7 {[%emt 0:00:03]} 47. Ra7+ {[%emt 0:00:01]} Ke6 {[%emt 0:00:02]} 48. Ra6+ {[%emt 0:00:04]} Kd7 {[%emt 0:00:02]} 49. Ra7+ {[%emt 0:00:16]} Kc6 {[%emt 0:00:02]} 50. Rf7 {[%emt 0:00:09]} Rg2+ {[%emt 0:00:09]} 51. Kh1 {[%emt 0:00:11]} gxh4 {[%emt 0:00:05]} 52. Rxf3 {[%emt 0:00:06]} Rxg4 {[%emt 0:00:06]} 0-1

[Event "European Online Club-ch-G 2021"]
[Site "Online"]
[Date "2021.03.27"]
[Round "1.9"]
[White "Gumularz, Szymon"]
[Black "Stalmach, Richard"]
[Result "1-0"]
[ECO "B80"]
[WhiteElo "2517"]
[BlackElo "2296"]
[Annotator "ChessBase"]
[PlyCount "59"]
[EventDate "2021.03.27"]
[EventType "team-tourn"]
[EventCountry "NET"]
[SourceTitle "playchess.com"]
[Source "ChessBase"]
[SourceQuality "1"]
[TimeControl "900+5"]

1. e4 {[%emt 0:00:00]} c5 {[%emt 0:00:08]} 2. Nf3 {[%emt 0:00:02]} e6 {[%emt 0:00:02]} 3. d4 {[%emt 0:00:04]} cxd4 {[%emt 0:00:02]} 4. Nxd4 {[%emt 0:00:01]} Nc6 {[%emt 0:00:03]} 5. Nc3 {[%emt 0:00:02]} Qc7 {[%emt 0:00:05]} 6. g3 {[%emt 0:00:04]} a6 {[%emt 0:00:09]} 7. Bg2 {[%emt 0:00:02]} Nf6 {[%emt 0:00:03]} 8. O-O {[%emt 0:00:02]} d6 {[%emt 0:00:04]} 9. Re1 {[%emt 0:00:13]} Be7 {[%emt 0:00:10]} 10. Nxc6 {[%emt 0:00:02]} bxc6 {[%emt 0:00:09]} 11. e5 {[%emt 0:00:02]} dxe5 {[%emt 0:01:16]} 12. Rxe5 {[%emt 0:00:02]} Nd5 {[%emt 0:00:07]} 13. Nxd5 {[%emt 0:00:47]} Qxe5 {[%emt 0:01:43]} 14. Bf4 {[%emt 0:00:54]} Qxd5 {[%emt 0:00:03]} 15. Bxd5 {[%emt 0:00:02]} cxd5 {[%emt 0:01:10]} 16. c4 {[%emt 0:00:02]} dxc4 {[%emt 0:01:48]} 17. Qf3 {[%emt 0:00:23]} Ra7 {[%emt 0:00:07]} 18. Qc6+ {[%emt 0:00:03]} Bd7 {[%emt 0:00:06]} 19. Qb6 {[%emt 0:00:01]} Ra8 {[%emt 0:00:16]} 20. Qb7 {[%emt 0:00:02]} Rd8 {[%emt 0:00:36]} 21. Rd1 {[%emt 0:00:02]} Bb5 {[%emt 0:00:42]} 22. Rxd8+ {[%emt 0:00:09]} Bxd8 {[%emt 0:00:02]} 23. Bd6 {[%emt 0:00:09]} h5 {[%emt 0:00:09]} 24. h4 {[%emt 0:00:27]} Rh6 {[%emt 0:00:47]} 25. a4 {[%emt 0:00:19]} Bxa4 {[%emt 0:00:07]} 26. Qxa6 {[%emt 0:00:01]} Bd7 {[%emt 0:00:05]} 27. Qa8 {[%emt 0:00:02]} Rh8 {[%emt 0:00:31]} 28. Bc7 {[%emt 0:01:13]} Ke7 {[%emt 0:00:04]} 29. Qa3+ {[%emt 0:00:01]} Kf6 {[%emt 0:00:45]} 30. Bxd8+ {[%emt 0:00:09]} 1-0

[Event "European Online Club-ch-G 2021"]
[Site "Online"]
[Date "2021.03.27"]
[Round "1.10"]
[White "Gnojek, Petr"]
[Black "Mastrovasilis, Dimitrios"]
[Result "1/2-1/2"]
[ECO "D56"]
[WhiteElo "2267"]
[BlackElo "2609"]
[Annotator "ChessBase"]
[PlyCount "121"]
[EventDate "2021.03.27"]
[EventType "team-tourn"]
[EventCountry "NET"]
[SourceTitle "playchess.com"]
[Source "ChessBase"]
[SourceQuality "1"]
[TimeControl "900+5"]

1. d4 {[%emt 0:00:00]} d5 {[%emt 0:00:04]} 2. c4 {[%emt 0:00:03]} e6 {[%emt 0:00:07]} 3. Nf3 {[%emt 0:00:05]} Nf6 {[%emt 0:00:04]} 4. Nc3 {[%emt 0:00:04]} Nbd7 {[%emt 0:01:58]} 5. Bg5 {[%emt 0:00:51]} Be7 {[%emt 0:00:15]} 6. e3 {[%emt 0:00:14]} h6 {[%emt 0:00:03]} 7. Bh4 {[%emt 0:00:09]} O-O {[%emt 0:00:04]} 8. cxd5 {[%emt 0:01:08]} Nxd5 {[%emt 0:00:54]} 9. Bxe7 {[%emt 0:01:22]} Qxe7 {[%emt 0:00:02]} 10. Nxd5 {[%emt 0:00:45]} exd5 {[%emt 0:00:04]} 11. Rc1 {[%emt 0:00:25]} c6 {[%emt 0:00:05]} 12. Bd3 {[%emt 0:00:05]} Nf6 {[%emt 0:00:49]} 13. Qc2 {[%emt 0:00:32]} Ne4 {[%emt 0:01:30]} 14. O-O {[%emt 0:01:24]} Bf5 {[%emt 0:00:39]} 15. Ne5 {[%emt 0:02:17]} f6 {[%emt 0:01:11]} 16. f3 {[%emt 0:00:02]} Nd6 {[%emt 0:01:36]} 17. Bxf5 {[%emt 0:00:56]} fxe5 {[%emt 0:00:04]} 18. Bh7+ {[%emt 0:00:08]} Kh8 {[%emt 0:00:03]} 19. dxe5 {[%emt 0:00:05]} Qxe5 {[%emt 0:00:06]} 20. Rfe1 {[%emt 0:00:03]} Rae8 {[%emt 0:00:26]} 21. Bd3 {[%emt 0:00:16]} Qg5 {[%emt 0:00:42]} 22. Qf2 {[%emt 0:00:20]} Nf5 {[%emt 0:00:51]} 23. Bxf5 {[%emt 0:00:42]} Rxf5 {[%emt 0:00:00]} 24. b4 {[%emt 0:02:22]} Qe7 {[%emt 0:01:10]} 25. Qd2 {[%emt 0:00:03]} Re5 {[%emt 0:00:23]} 26. Kf2 {[%emt 0:00:04]} Rf8 {[%emt 0:01:10]} 27. Kg1 {[%emt 0:00:20]} Re8 {[%emt 0:00:48]} 28. Kf2 {[%emt 0:00:04]} Qd6 {[%emt 0:00:01]} 29. Kg1 {[%emt 0:01:20]} Rh5 {[%emt 0:00:28]} 30. g3 {[%emt 0:00:45]} Rf5 {[%emt 0:00:10]} 31. Kg2 {[%emt 0:00:07]} a6 {[%emt 0:00:27]} 32. a3 {[%emt 0:00:04]} Qf6 {[%emt 0:00:12]} 33. Rf1 {[%emt 0:00:13]} Re6 {[%emt 0:00:06]} 34. Rce1 {[%emt 0:00:15]} Rfe5 {[%emt 0:00:12]} 35. Qd3 {[%emt 0:00:07]} Qe7 {[%emt 0:00:11]} 36. Kf2 {[%emt 0:00:02]} Qd7 {[%emt 0:00:23]} 37. Kg2 {[%emt 0:00:07]} Qe8 {[%emt 0:00:05]} 38. Kf2 {[%emt 0:00:02]} Qe7 {[%emt 0:00:17]} 39. Re2 {[%emt 0:00:08]} Qf6 {[%emt 0:00:18]} 40. Kg2 {[%emt 0:00:03]} Re7 {[%emt 0:00:04]} 41. e4 {[%emt 0:00:06]} Qg6 {[%emt 0:00:11]} 42. Rfe1 {[%emt 0:00:02]} Kh7 {[%emt 0:00:03]} 43. Qd4 {[%emt 0:00:08]} Qe6 {[%emt 0:00:08]} 44. Qd3 {[%emt 0:00:08]} Kh8 {[%emt 0:00:03]} 45. Re3 {[%emt 0:00:06]} Re8 {[%emt 0:00:09]} 46. Qd4 {[%emt 0:00:02]} Qe7 {[%emt 0:00:03]} 47. R1e2 {[%emt 0:00:05]} Qf6 {[%emt 0:00:05]} 48. Qd3 {[%emt 0:00:09]} R5e7 {[%emt 0:00:08]} 49. exd5 {[%emt 0:00:06]} Rxe3 {[%emt 0:00:01]} 50. Rxe3 {[%emt 0:00:01]} Rxe3 {[%emt 0:00:01]} 51. Qxe3 {[%emt 0:00:01]} cxd5 {[%emt 0:00:01]} 52. Qd3 {[%emt 0:00:08]} Qb2+ {[%emt 0:00:05]} 53. Kh3 {[%emt 0:00:09]} Qe5 {[%emt 0:00:03]} 54. f4 {[%emt 0:00:07]} Qd6 {[%emt 0:00:05]} 55. Kg2 {[%emt 0:00:08]} d4 {[%emt 0:00:02]} 56. Kf3 {[%emt 0:00:02]} Qc6+ {[%emt 0:00:10]} 57. Qe4 {[%emt 0:00:06]} Qc3+ {[%emt 0:00:05]} 58. Kg4 {[%emt 0:00:02]} d3 {[%emt 0:00:13]} 59. Qe8+ {[%emt 0:00:03]} Kh7 {[%emt 0:00:02]} 60. Qe4+ {[%emt 0:00:01]} Kh8 {[%emt 0:00:01]} 61. Qe8+ {[%emt 0:00:03]} 1/2-1/2

[Event "European Online Club-ch-G 2021"]
[Site "Online"]
[Date "2021.03.27"]
[Round "1.11"]
[White "Tazbir, Marcin"]
[Black "Frank, Adam"]
[Result "1/2-1/2"]
[ECO "A22"]
[WhiteElo "2513"]
[BlackElo "2238"]
[Annotator "ChessBase"]
[PlyCount "126"]
[EventDate "2021.03.27"]
[EventType "team-tourn"]
[EventCountry "NET"]
[SourceTitle "playchess.com"]
[Source "ChessBase"]
[SourceQuality "1"]
[TimeControl "900+5"]

1. c4 {[%emt 0:00:00]} e5 {[%emt 0:00:04]} 2. g3 {[%emt 0:00:03]} Nf6 {[%emt 0:00:03]} 3. Bg2 {[%emt 0:00:05]} d5 {[%emt 0:00:01]} 4. cxd5 {[%emt 0:00:02]} Nxd5 {[%emt 0:00:02]} 5. Nc3 {[%emt 0:00:02]} Nb6 {[%emt 0:00:06]} 6. e3 {[%emt 0:00:04]} Nc6 {[%emt 0:00:35]} 7. Nge2 {[%emt 0:00:03]} Be7 {[%emt 0:00:14]} 8. O-O {[%emt 0:00:04]} O-O {[%emt 0:00:02]} 9. f4 {[%emt 0:00:03]} exf4 {[%emt 0:01:15]} 10. Nxf4 {[%emt 0:00:03]} Nb4 {[%emt 0:01:54]} 11. d4 {[%emt 0:00:06]} c5 {[%emt 0:00:08]} 12. d5 {[%emt 0:00:55]} Bf6 {[%emt 0:00:21]} 13. a3 {[%emt 0:00:31]} Na6 {[%emt 0:00:02]} 14. Kh1 {[%emt 0:00:13]} g6 {[%emt 0:00:25]} 15. e4 {[%emt 0:00:56]} Nc4 {[%emt 0:00:09]} 16. Nd3 {[%emt 0:00:19]} h5 {[%emt 0:00:43]} 17. Bh6 {[%emt 0:00:51]} Bg4 {[%emt 0:00:31]} 18. Qb3 {[%emt 0:01:49]} Na5 {[%emt 0:01:19]} 19. Qc2 {[%emt 0:00:05]} Bg7 {[%emt 0:00:36]} 20. Bxg7 {[%emt 0:00:03]} Kxg7 {[%emt 0:00:01]} 21. b4 {[%emt 0:01:32]} cxb4 {[%emt 0:00:16]} 22. axb4 {[%emt 0:00:02]} Nc4 {[%emt 0:00:05]} 23. b5 {[%emt 0:00:03]} Nc7 {[%emt 0:00:38]} 24. Qf2 {[%emt 0:00:09]} Kg8 {[%emt 0:01:07]} 25. Rxa7 {[%emt 0:01:04]} Rxa7 {[%emt 0:00:12]} 26. Qxa7 {[%emt 0:00:03]} b6 {[%emt 0:00:08]} 27. Re1 {[%emt 0:00:35]} h4 {[%emt 0:00:28]} 28. Qa2 {[%emt 0:00:26]} Nd6 {[%emt 0:00:54]} 29. e5 {[%emt 0:00:37]} Nf5 {[%emt 0:00:39]} 30. Ne4 {[%emt 0:00:07]} h3 {[%emt 0:00:20]} 31. Nf6+ {[%emt 0:00:05]} Kg7 {[%emt 0:00:02]} 32. Be4 {[%emt 0:00:05]} Nh6 {[%emt 0:00:44]} 33. Qc4 {[%emt 0:01:16]} Bf5 {[%emt 0:00:15]} 34. Bxf5 {[%emt 0:00:40]} Nxf5 {[%emt 0:00:04]} 35. g4 {[%emt 0:00:10]} Nh4 {[%emt 0:00:32]} 36. Re3 {[%emt 0:01:28]} Qa8 {[%emt 0:00:31]} 37. Rxh3 {[%emt 0:01:36]} Rh8 {[%emt 0:00:32]} 38. Nc1 {[%emt 0:01:04]} Qa1 {[%emt 0:00:37]} 39. Qc3 {[%emt 0:00:28]} Qxc3 {[%emt 0:00:43]} 40. Rxc3 {[%emt 0:00:02]} Nxb5 {[%emt 0:00:01]} 41. Rd3 {[%emt 0:00:23]} Rc8 {[%emt 0:00:09]} 42. Ne2 {[%emt 0:00:02]} Rc2 {[%emt 0:00:07]} 43. Ng1 {[%emt 0:00:02]} Nc7 {[%emt 0:00:15]} 44. g5 {[%emt 0:00:08]} b5 {[%emt 0:00:12]} 45. d6 {[%emt 0:00:06]} Ne6 {[%emt 0:00:02]} 46. d7 {[%emt 0:00:01]} Nd8 {[%emt 0:00:08]} 47. Rh3 {[%emt 0:00:08]} Rc4 {[%emt 0:00:02]} 48. Ne8+ {[%emt 0:00:08]} Kf8 {[%emt 0:00:04]} 49. Nd6 {[%emt 0:00:01]} Rb4 {[%emt 0:00:06]} 50. Nxb5 {[%emt 0:00:04]} Rxb5 {[%emt 0:00:08]} 51. Rxh4 {[%emt 0:00:01]} Ke7 {[%emt 0:00:01]} 52. Nf3 {[%emt 0:00:05]} Kxd7 {[%emt 0:00:07]} 53. Kg2 {[%emt 0:00:09]} Ne6 {[%emt 0:00:03]} 54. Ra4 {[%emt 0:00:06]} Ke7 {[%emt 0:00:15]} 55. h4 {[%emt 0:00:02]} Ng7 {[%emt 0:00:10]} 56. Ra7+ {[%emt 0:00:04]} Kf8 {[%emt 0:00:02]} 57. Ra8+ {[%emt 0:00:04]} Ke7 {[%emt 0:00:01]} 58. Nd4 {[%emt 0:00:03]} Rb2+ {[%emt 0:00:07]} 59. Kf3 {[%emt 0:00:02]} Ne6 {[%emt 0:00:18]} 60. Ra7+ {[%emt 0:00:07]} Kf8 {[%emt 0:00:04]} 61. Nxe6+ {[%emt 0:00:04]} fxe6 {[%emt 0:00:01]} 62. h5 {[%emt 0:00:15]} Rb3+ {[%emt 0:00:08]} 63. Kf2 {[%emt 0:00:02]} gxh5 {[%emt 0:00:07]} 1/2-1/2

[Event "European Online Club-ch-G 2021"]
[Site "Online"]
[Date "2021.03.27"]
[Round "1.12"]
[White "Laurincova, Kristyna"]
[Black "Zawadzka, Jolanta"]
[Result "0-1"]
[ECO "C78"]
[WhiteElo "2008"]
[BlackElo "2399"]
[Annotator "NA"]
[PlyCount "52"]
[EventDate "2021.03.27"]
[EventType "team-tourn"]
[EventCountry "NET"]
[SourceTitle "playchess.com"]
[Source "ChessBase"]
[SourceQuality "1"]
[TimeControl "900+5"]

1. e4 {[%emt 0:00:00]} e5 {[%emt 0:00:06]} 2. Nf3 {[%emt 0:00:05]} Nc6 {[%emt 0:00:02]} 3. Bb5 {[%emt 0:00:04]} a6 {[%emt 0:00:05]} 4. Ba4 {[%emt 0:00:07]} Nf6 {[%emt 0:00:02]} 5. O-O {[%emt 0:00:05]} b5 {[%emt 0:00:03]} 6. Bb3 {[%emt 0:00:02]} Bc5 {[%emt 0:00:01]} 7. c3 {[%emt 0:04:36]} d6 {[%emt 0:00:06]} 8. d4 {[%emt 0:00:40]} Bb6 {[%emt 0:00:03]} 9. h3 {[%emt 0:00:29]} h6 {[%emt 0:00:15]} 10. Re1 {[%emt 0:00:45]} O-O {[%emt 0:00:06]} 11. Be3 {[%emt 0:00:35]} exd4 {[%emt 0:00:28]} 12. cxd4 {[%emt 0:00:38]} Na5 {[%emt 0:00:11]} 13. e5 {[%emt 0:03:02]} Nxb3 {[%emt 0:00:28]} 14. Qxb3 {[%emt 0:00:06]} Be6 {[%emt 0:00:13]} 15. Qa3 {[%emt 0:01:31]} Nd5 {[%emt 0:00:14]} 16. exd6 {[%emt 0:00:27]} cxd6 {[%emt 0:00:12]} 17. Nbd2 {[%emt 0:00:41]} Qd7 {[%emt 0:01:48]} 18. Ne4 {[%emt 0:00:53]} f5 {[%emt 0:00:09]} 19. Nxd6 {[%emt 0:01:37]} b4 {[%emt 0:00:04]} 20. Qd3 {[%emt 0:00:06]} Qxd6 {[%emt 0:00:03]} 21. Ne5 {[%emt 0:00:03]} Nxe3 {[%emt 0:00:41]} 22. fxe3 {[%emt 0:00:06]} Bd5 {[%emt 0:00:04]} 23. Nc4 {[%emt 0:00:06]} Qe6 {[%emt 0:00:11]} 24. Nxb6 {[%emt 0:00:02]} Qxb6 {[%emt 0:00:02]} 25. Rac1 {[%emt 0:00:08]} Qe6 {[%emt 0:00:09]} 26. Rc5 {[%emt 0:00:08]} Rfe8 {[%emt 0:00:18]} 0-1

[Event "European Online Club-ch-G 2021"]
[Site "Online"]
[Date "2021.03.27"]
[Round "1.13"]
[White "Gazik, Viktor"]
[Black "Sevdimaliyev, Urfan"]
[Result "1-0"]
[ECO "B51"]
[WhiteElo "2542"]
[BlackElo "2369"]
[Annotator "ChessBase"]
[PlyCount "95"]
[EventDate "2021.03.27"]
[EventType "team-tourn"]
[EventCountry "NET"]
[SourceTitle "playchess.com"]
[Source "ChessBase"]
[SourceQuality "1"]
[TimeControl "900+5"]

1. e4 {[%emt 0:00:00]} c5 {[%emt 0:00:27]} 2. Nf3 {[%emt 0:00:05]} Nc6 {[%emt 0:00:16]} 3. Bb5 {[%emt 0:00:03]} d6 {[%emt 0:00:11]} 4. O-O {[%emt 0:00:02]} Bd7 {[%emt 0:00:08]} 5. Re1 {[%emt 0:00:02]} Nf6 {[%emt 0:01:43]} 6. c3 {[%emt 0:00:04]} a6 {[%emt 0:01:20]} 7. Bf1 {[%emt 0:00:03]} Bg4 {[%emt 0:00:09]} 8. h3 {[%emt 0:00:01]} Bxf3 {[%emt 0:00:04]} 9. Qxf3 {[%emt 0:00:00]} e6 {[%emt 0:00:04]} 10. d3 {[%emt 0:02:27]} Be7 {[%emt 0:00:12]} 11. Be3 {[%emt 0:01:42]} O-O {[%emt 0:00:15]} 12. Nd2 {[%emt 0:00:18]} d5 {[%emt 0:01:55]} 13. Qg3 {[%emt 0:00:38]} d4 {[%emt 0:01:01]} 14. Bh6 {[%emt 0:00:36]} Ne8 {[%emt 0:00:14]} 15. Nf3 {[%emt 0:00:11]} Kh8 {[%emt 0:00:43]} 16. Bf4 {[%emt 0:00:50]} Nf6 {[%emt 0:00:32]} 17. Bd2 {[%emt 0:01:08]} b5 {[%emt 0:01:25]} 18. Rad1 {[%emt 0:00:59]} a5 {[%emt 0:00:38]} 19. Ne5 {[%emt 0:00:43]} Nxe5 {[%emt 0:00:28]} 20. Qxe5 {[%emt 0:00:00]} Qb8 {[%emt 0:01:32]} 21. cxd4 {[%emt 0:01:11]} cxd4 {[%emt 0:01:44]} 22. Qxd4 {[%emt 0:00:00]} Rd8 {[%emt 0:00:11]} 23. Qe3 {[%emt 0:00:50]} e5 {[%emt 0:00:08]} 24. Rc1 {[%emt 0:00:29]} Nd7 {[%emt 0:00:19]} 25. d4 {[%emt 0:01:28]} exd4 {[%emt 0:00:12]} 26. Qxd4 {[%emt 0:00:00]} Bf6 {[%emt 0:00:24]} 27. Qe3 {[%emt 0:00:02]} b4 {[%emt 0:00:35]} 28. b3 {[%emt 0:01:37]} Nb6 {[%emt 0:00:04]} 29. Red1 {[%emt 0:00:27]} Bd4 {[%emt 0:00:06]} 30. Qf3 {[%emt 0:00:06]} Qe5 {[%emt 0:00:09]} 31. h4 {[%emt 0:00:53]} h6 {[%emt 0:00:09]} 32. h5 {[%emt 0:00:06]} Bb2 {[%emt 0:00:06]} 33. Rb1 {[%emt 0:00:05]} Bd4 {[%emt 0:00:04]} 34. g3 {[%emt 0:00:07]} Rac8 {[%emt 0:00:08]} 35. Rbc1 {[%emt 0:00:06]} Rxc1 {[%emt 0:00:04]} 36. Rxc1 {[%emt 0:00:01]} Bb2 {[%emt 0:00:06]} 37. Bf4 {[%emt 0:00:10]} Qf6 {[%emt 0:00:04]} 38. Rc5 {[%emt 0:00:01]} Bd4 {[%emt 0:00:04]} 39. Rxa5 {[%emt 0:00:06]} Rc8 {[%emt 0:00:06]} 40. e5 {[%emt 0:00:10]} Qe6 {[%emt 0:00:09]} 41. Qe4 {[%emt 0:00:11]} Bc5 {[%emt 0:00:02]} 42. Bd3 {[%emt 0:00:05]} g6 {[%emt 0:00:08]} 43. hxg6 {[%emt 0:00:05]} fxg6 {[%emt 0:00:02]} 44. Qxg6 {[%emt 0:00:06]} Qxg6 {[%emt 0:00:02]} 45. Bxg6 {[%emt 0:00:00]} Bd4 {[%emt 0:00:05]} 46. e6 {[%emt 0:00:17]} Kg7 {[%emt 0:00:09]} 47. Bh5 {[%emt 0:00:06]} Rc2 {[%emt 0:00:11]} 48. e7 {[%emt 0:00:08]} 1-0

[Event "European Online Club-ch-G 2021"]
[Site "Online"]
[Date "2021.03.27"]
[Round "1.14"]
[White "Babayev, Talib"]
[Black "Sahidi, Samir"]
[Result "0-1"]
[ECO "C92"]
[WhiteElo "2282"]
[BlackElo "2407"]
[Annotator "NA"]
[PlyCount "138"]
[EventDate "2021.03.27"]
[EventType "team-tourn"]
[EventCountry "NET"]
[SourceTitle "playchess.com"]
[Source "ChessBase"]
[SourceQuality "1"]
[TimeControl "900+5"]

1. e4 {[%emt 0:00:00]} e5 {[%emt 0:00:16]} 2. Nf3 {[%emt 0:00:06]} Nc6 {[%emt 0:00:01]} 3. Bb5 {[%emt 0:00:04]} a6 {[%emt 0:00:45]} 4. Ba4 {[%emt 0:00:03]} Nf6 {[%emt 0:00:59]} 5. O-O {[%emt 0:00:19]} Be7 {[%emt 0:00:58]} 6. Re1 {[%emt 0:00:15]} b5 {[%emt 0:00:03]} 7. Bb3 {[%emt 0:00:10]} d6 {[%emt 0:00:18]} 8. c3 {[%emt 0:00:07]} O-O {[%emt 0:00:14]} 9. h3 {[%emt 0:00:10]} Bb7 {[%emt 0:01:15]} 10. d4 {[%emt 0:03:32]} Na5 {[%emt 0:01:37]} 11. Bc2 {[%emt 0:00:06]} Nd7 {[%emt 0:00:25]} 12. Nbd2 {[%emt 0:00:12]} c5 {[%emt 0:01:11]} 13. d5 {[%emt 0:00:28]} Qc7 {[%emt 0:00:51]} 14. g4 {[%emt 0:01:15]} Rfb8 {[%emt 0:00:27]} 15. b3 {[%emt 0:00:30]} Nf8 {[%emt 0:00:09]} 16. Nf1 {[%emt 0:00:07]} Bc8 {[%emt 0:00:04]} 17. Ng3 {[%emt 0:00:04]} Nb7 {[%emt 0:00:16]} 18. Nf5 {[%emt 0:00:23]} a5 {[%emt 0:00:43]} 19. c4 {[%emt 0:00:43]} Nd8 {[%emt 0:00:35]} 20. Nh2 {[%emt 0:00:31]} a4 {[%emt 0:00:24]} 21. bxa4 {[%emt 0:00:36]} bxc4 {[%emt 0:00:05]} 22. f4 {[%emt 0:00:08]} Ng6 {[%emt 0:00:16]} 23. Nf3 {[%emt 0:01:07]} Nxf4 {[%emt 0:00:32]} 24. Bxf4 {[%emt 0:00:06]} exf4 {[%emt 0:00:03]} 25. e5 {[%emt 0:01:07]} Bxf5 {[%emt 0:00:05]} 26. Bxf5 {[%emt 0:00:15]} g6 {[%emt 0:00:06]} 27. Bc2 {[%emt 0:00:05]} dxe5 {[%emt 0:00:40]} 28. Nxe5 {[%emt 0:00:31]} c3 {[%emt 0:00:44]} 29. Bb3 {[%emt 0:00:27]} Bd6 {[%emt 0:00:28]} 30. Nc4 {[%emt 0:00:46]} Nb7 {[%emt 0:00:05]} 31. Qc2 {[%emt 0:00:13]} Bf8 {[%emt 0:00:51]} 32. Rad1 {[%emt 0:00:15]} Nd6 {[%emt 0:00:10]} 33. Qxc3 {[%emt 0:00:12]} Bg7 {[%emt 0:00:14]} 34. Qc1 {[%emt 0:00:23]} Nxc4 {[%emt 0:00:08]} 35. Qxc4 {[%emt 0:00:04]} Qd6 {[%emt 0:00:06]} 36. Qe4 {[%emt 0:00:19]} Rb4 {[%emt 0:00:17]} 37. Qe7 {[%emt 0:00:03]} Bf8 {[%emt 0:00:11]} 38. Qxd6 {[%emt 0:00:21]} Bxd6 {[%emt 0:00:01]} 39. Rc1 {[%emt 0:00:02]} Kg7 {[%emt 0:00:08]} 40. Kg2 {[%emt 0:00:03]} h6 {[%emt 0:00:13]} 41. Kf3 {[%emt 0:00:03]} Rd4 {[%emt 0:00:14]} 42. Red1 {[%emt 0:00:08]} Rb4 {[%emt 0:00:02]} 43. Rc2 {[%emt 0:00:06]} Kf6 {[%emt 0:00:09]} 44. Re1 {[%emt 0:00:05]} Kg5 {[%emt 0:00:08]} 45. Re4 {[%emt 0:00:04]} Rxe4 {[%emt 0:00:16]} 46. Kxe4 {[%emt 0:00:03]} Kh4 {[%emt 0:00:01]} 47. Rc3 {[%emt 0:00:08]} Re8+ {[%emt 0:00:13]} 48. Kf3 {[%emt 0:00:03]} Kxh3 {[%emt 0:00:08]} 49. Bc4 {[%emt 0:00:03]} Ra8 {[%emt 0:00:13]} 50. Ra3 {[%emt 0:00:03]} Ra5 {[%emt 0:00:04]} 51. Bb5 {[%emt 0:00:03]} Kh4 {[%emt 0:00:04]} 52. Rc3 {[%emt 0:00:05]} h5 {[%emt 0:00:11]} 53. gxh5 {[%emt 0:00:03]} Kxh5 {[%emt 0:00:01]} 54. Rc1 {[%emt 0:00:02]} Kg5 {[%emt 0:00:04]} 55. Rh1 {[%emt 0:00:08]} Kf6 {[%emt 0:00:14]} 56. Rh7 {[%emt 0:00:06]} c4 {[%emt 0:00:11]} 57. Ke4 {[%emt 0:00:10]} c3 {[%emt 0:00:05]} 58. Kd3 {[%emt 0:00:09]} Be5 {[%emt 0:00:02]} 59. Rh3 {[%emt 0:00:08]} Ke7 {[%emt 0:00:13]} 60. Rh2 {[%emt 0:00:10]} g5 {[%emt 0:00:06]} 61. Kc4 {[%emt 0:00:05]} g4 {[%emt 0:00:04]} 62. Re2 {[%emt 0:00:06]} Kd6 {[%emt 0:00:02]} 63. Kb4 {[%emt 0:00:03]} Ra7 {[%emt 0:00:02]} 64. a5 {[%emt 0:00:04]} f3 {[%emt 0:00:01]} 65. Rc2 {[%emt 0:00:03]} g3 {[%emt 0:00:03]} 66. Bf1 {[%emt 0:00:08]} Kxd5 {[%emt 0:00:06]} 67. Kb5 {[%emt 0:00:09]} Rb7+ {[%emt 0:00:02]} 68. Ka6 {[%emt 0:00:02]} Rb2 {[%emt 0:00:01]} 69. Rc1 {[%emt 0:00:06]} g2 {[%emt 0:00:02]} 0-1